bitfinex/quotes_ETHUSD_20240825
["timestamp","ask_amount","ask_price","bid_price","bid_amount"]
[1724601008195,2.84902952,2765.7,2765.3,3.61612]
[1724601008937,2.84902952,2765.7,2765.1,3.61641]
[1724601009108,2.4523,2765.6,2765.1,3.61641]
[1724601009500,2.4523,2765.6,2765.1,7.23283]
[1724601009895,2.4523,2765.6,2765.1,3.61641]
[1724601010297,2.4523,2765.6,2765.3,3.61621]
[1724601010501,2.4523,2765.6,2765.3,3.61616]
[1724601012668,2.4523,2765.6,2765.1,7.23282]
[1724601012848,2.4523,2765.6,2765.3,3.61622]
[1724601013139,2.4523,2765.6,2765.3,3.61615]
[1724601013344,2.4523,2765.6,2765.4,3.61602]
[1724601013549,2.4523,2765.6,2765.3,3.61615]
[1724601014101,2.4523,2765.6,2765.1,3.61644]
[1724601014542,3.96729524,2765.6,2765.1,3.61644]
[1724601016839,2.4523,2765.5,2765.1,3.61644]
[1724601019138,4.55319745,2765.5,2764.9,3.61668]
[1724601019312,2.4523,2765.4,2764.9,3.61668]
[1724601020917,3.96729524,2765.4,2764.5,3.95664868]
[1724601021126,2.4523,2765.2,2764.6,3.61707]
[1724601021551,2.4523,2765.2,2764.7,3.61695]
[1724601022106,2.4523,2765.2,2764.9,3.61668]
[1724601022306,2.4523,2765.2,2764.8,3.61686]
[1724601023151,2.4523,2765.2,2764.6,3.61707]
[1724601024057,2.4523,2765.2,2764.5,3.61718]
[1724601024236,2.4523,2765.1,2764.5,7.23438]
[1724601025051,2.4523,2765.1,2764.5,3.61718]
[1724601025361,2.4523,2765.1,2764.5,7.23438]
[1724601025520,2.4523,2765.1,2764.6,3.61715]
[1724601025729,2.4523,2765.1,2764.7,3.61702]
[1724601026225,2.4523,2765.1,2764.5,7.23435]
[1724601026427,2.4523,2765.1,2764.5,8.20405596]
[1724601026866,2.4523,2765.1,2764.6,3.61713]
[1724601027661,2.4523,2765.1,2764.5,4.58687596]
[1724601027662,2.4523,2765.1,2764.5,3.61717]
[1724601028165,2.4523,2765.1,2764.6,3.61714]
[1724601028369,2.4523,2765.1,2764.5,3.61717]
[1724601028370,2.4523,2765.1,2764.7,3.61701]
[1724601029778,2.4523,2765.1,2764.8,3.61686]
[1724601033684,3.75361121,2765.3,2764.8,3.61686]
[1724601036936,11.46119524,2765.5,2765.2,3.61633]
[1724601037079,9.9462,2765.5,2765.2,3.977913]
[1724601037282,2.4862,2765.7,2765.2,0.361633]
[1724601037488,2.78240645,2765.9,2765.2,0.361633]
[1724601037489,2.4862,2765.9,2765.7,3.61566]
[1724601038195,2.4862,2765.9,2765.5,3.61586]
[1724601038564,2.4862,2765.9,2765.5,7.23176]
[1724601038769,2.4862,2765.9,2765.5,3.61586]
[1724601040153,3.75361121,2765.9,2765.5,3.61586]
[1724601040401,1.26741121,2765.7,2765.1,5.91411]
[1724601040605,3.01306064,2765.9,2764.9,3.61672]
[1724601040606,2.4862,2765.2,2764.9,3.61672]
[1724601040763,1.26741121,2765.1,2764.5,3.61721]
[1724601041104,1.26741121,2765.1,2764.7,3.61693]
[1724601041305,2.4862,2765.2,2764.7,3.61693]
[1724601041901,2.4862,2765.2,2764.5,3.61721]
[1724601042496,2.4862,2765.2,2764.7,3.61694]
[1724601042667,3.096432,2765.2,2764.7,3.61694]
[1724601042873,3.096432,2765.2,2764.8,3.61685]
[1724601043202,2.4862,2765.2,2764.8,3.61685]
[1724601046698,2.4862,2765.2,2765.0,3.61662]
[1724601047396,2.4862,2765.2,2764.8,3.61685]
[1724601047397,2.4862,2765.2,2764.8,3.61678]
[1724601047897,2.4862,2765.2,2764.8,7.2336]
[1724601049578,2.4862,2765.2,2764.8,3.61678]
[1724601050163,2.4862,2765.2,2764.9,3.61676]
[1724601050376,2.4862,2765.2,2765.0,3.61662]
[1724601050714,3.79329524,2765.5,2765.1,3.6165]
[1724601051289,3.79329524,2765.5,2765.0,3.61655]
[1724601051517,3.79329524,2765.5,2765.1,3.61642]
[1724601051666,5.10764003,2765.5,2765.1,3.61642]
[1724601053576,5.10764003,2765.5,2764.9,3.61665]
[1724601053784,5.10764003,2765.5,2765.0,3.61663]
[1724601054048,5.10764003,2765.5,2765.0,3.61656]
[1724601054345,3.79329524,2765.5,2765.0,3.61656]
[1724601055152,3.79329524,2765.5,2765.1,3.61646]
[1724601055554,3.79329524,2765.5,2765.2,3.6163]
[1724601055776,3.79329524,2765.8,2765.6,3.61585]
[1724601056227,2.2783,2765.8,2765.6,3.61585]
[1724601056432,2.2783,2765.8,2765.4,3.61611]
[1724601056735,3.79329524,2765.8,2765.4,3.61611]
[1724601057136,2.2783,2765.8,2765.4,7.23213]
[1724601057476,2.2783,2765.8,2765.5,3.61598]
[1724601058575,3.79329524,2766.0,2765.6,7.2316]
[1724601058775,3.79329524,2766.0,2765.6,3.61575]
[1724601058959,1.51499524,2766.1,2765.6,3.61578]
[1724601059574,2.2783,2766.2,2765.8,3.61548]
[1724601059575,3.79329524,2766.2,2765.8,3.61548]
[1724601060078,3.79329524,2766.2,2765.6,3.61575]
[1724601060277,2.08342571,2766.1,2765.6,3.61575]
[1724601060486,2.08342571,2766.1,2765.7,3.61572]
[1724601060792,1.51499524,2766.1,2765.7,3.61572]
[1724601060967,5.13052524,2765.9,2765.2,3.61627]
[1724601061150,3.61579,2765.7,2765.1,3.61648]
[1724601061862,4.90735247,2765.7,2765.0,3.61654]
[1724601062066,3.61612,2765.4,2764.8,3.61685]
[1724601063094,5.13111524,2765.4,2764.8,3.61685]
[1724601063590,5.13111524,2765.4,2764.7,3.617]
[1724601063591,3.79329524,2765.3,2764.7,3.617]
[1724601063787,3.79329524,2765.3,2764.6,3.61715]
[1724601063788,2.44496571,2765.2,2764.6,3.61715]
[1724601064144,2.44496571,2765.2,2764.7,3.61701]
[1724601064344,3.79329524,2765.3,2764.7,3.61701]
[1724601064850,1.51499524,2765.2,2764.7,3.61701]
[1724601065251,1.51499524,2765.2,2764.5,3.61718]
[1724601067069,1.51499524,2765.2,2764.6,3.61712]
[1724601067247,3.79329524,2765.3,2764.8,3.61686]
[1724601067757,3.79329524,2765.3,2764.8,3.61681]
[1724601068261,3.79329524,2765.3,2764.9,3.61669]
[1724601069005,3.79329524,2765.3,2765.0,3.6166]
[1724601069307,2.2783,2765.3,2765.0,3.61654]
[1724601069789,2.2783,2765.3,2765.1,3.61649]
[1724601069964,7.46,2765.4,2765.0,3.61654]
[1724601070291,7.46,2765.4,2764.8,3.61678]
[1724601070592,2.2625,2765.3,2764.9,3.61676]
[1724601070973,2.2625,2765.3,2764.8,7.2336]
[1724601071173,2.2625,2765.3,2764.9,3.61676]
[1724601073377,3.77749524,2765.3,2764.6,3.61703]
[1724601074178,2.2625,2765.3,2764.6,3.61703]
[1724601074377,2.2625,2765.3,2764.7,0.361703]
[1724601074915,2.2625,2765.3,2765.0,3.61654]
[1724601077098,2.2625,2765.3,2764.9,3.61671]
[1724601077303,3.77749524,2765.3,2764.9,3.61671]
[1724601077714,2.2625,2765.3,2764.9,3.61671]
[1724601078478,2.2625,2765.3,2765.0,3.61662]
[1724601079514,2.2625,2765.3,2764.8,3.61681]
[1724601079672,3.77749524,2765.3,2764.8,7.23361]
[1724601080089,3.77749524,2765.3,2764.9,3.61676]
[1724601080288,3.77749524,2765.3,2764.8,7.23361]
[1724601080289,4.70587829,2765.3,2764.8,7.23361]
[1724601081230,4.70587829,2765.3,2764.9,3.61675]
[1724601081529,4.70587829,2765.3,2764.4,3.7486496]
[1724601081530,1.51499524,2765.2,2764.7,3.61701]
[1724601082125,8.32215829,2765.3,2764.7,3.61701]
[1724601083616,4.70587829,2765.3,2764.7,3.61695]
[1724601084111,4.70587829,2765.3,2764.7,7.23389]
[1724601085629,4.70587829,2765.3,2764.8,3.61688]
[1724601085841,1.51499524,2765.2,2764.8,3.61688]
[1724601086843,3.77749524,2765.3,2764.8,3.61688]
[1724601087444,3.77749524,2765.3,2764.9,3.61674]
[1724601088695,3.77749524,2765.3,2765.1,3.6164]
[1724601088905,1.51499524,2765.5,2764.9,4.3401]
[1724601089127,1.89034522,2765.6,2764.9,4.3401]
[1724601089128,1.51499524,2765.6,2765.3,3.61613]
[1724601091739,11.68131287,2765.8,2765.3,3.61613]
[1724601091740,1.51499524,2765.7,2765.3,3.61613]
[1724601091941,1.51499524,2765.7,2765.6,3.61585]
[1724601092238,1.51499524,2765.9,2765.7,3.61563]
[1724601092446,16.17889524,2766.1,2765.7,3.61563]
[1724601092944,1.51499524,2766.1,2765.7,3.61563]
[1724601093139,8.97499524,2766.2,2765.8,3.61557]
[1724601093351,8.97499524,2766.2,2765.7,3.61563]
[1724601094650,1.51499524,2766.2,2765.8,3.61549]
[1724601095147,3.96889524,2766.3,2765.8,3.61549]
[1724601097013,3.96889524,2766.3,2765.7,3.61563]
[1724601097241,1.51499524,2766.2,2765.7,3.61563]
[1724601097410,2.4539,2766.1,2765.6,3.61577]
[1724601097749,3.96889524,2766.1,2765.6,3.61577]
[1724601097918,2.4539,2766.1,2765.6,3.61577]
[1724601099055,2.4539,2766.1,2765.7,3.6157]
[1724601107398,2.4539,2766.1,2765.7,3.61564]
[1724601107684,2.4539,2766.1,2765.8,3.61556]
[1724601107883,2.427,2766.3,2765.8,3.61556]
[1724601108714,2.427,2766.3,2765.9,3.61538]
[1724601109011,1.51499524,2766.5,2766.1,3.61511]
[1724601109236,3.94199524,2766.6,2766.2,3.61498]
[1724601109509,2.427,2766.6,2766.2,3.61498]
[1724601110352,2.427,2766.6,2765.9,3.61538]
[1724601110555,2.427,2766.4,2765.8,3.61546]
[1724601110870,6.04183,2766.4,2765.8,3.61546]
[1724601111075,2.427,2766.4,2765.8,7.23097]
[1724601111599,2.427,2766.4,2765.8,3.61546]
[1724601111815,5.12961524,2766.6,2765.4,5.97963]
[1724601111816,2.427,2766.2,2765.4,5.97963]
[1724601112106,6.04209,2766.2,2765.6,3.61583]
[1724601112325,6.58898602,2766.2,2765.6,3.61583]
[1724601112478,2.97389602,2766.2,2765.6,3.61583]
[1724601115229,6.58897602,2766.2,2765.6,3.61583]
[1724601115381,3.6152,2766.1,2765.4,3.61603]
[1724601115581,2.427,2766.0,2765.4,3.61603]
[1724601115787,2.427,2766.0,2765.5,3.61597]
[1724601119025,2.427,2766.0,2765.4,3.61603]
[1724601119828,2.427,2766.0,2765.2,3.61633]
[1724601119829,6.04247,2765.9,2765.2,3.61633]
[1724601119983,2.427,2765.6,2765.0,3.61652]
[1724601120309,2.427,2765.6,2765.1,3.6165]
[1724601124816,2.427,2765.6,2765.2,3.61635]
[1724601125177,2.427,2765.6,2765.0,3.61651]
[1724601125376,2.427,2765.6,2765.1,3.61647]
[1724601126324,5.13059524,2765.8,2765.1,3.61647]
[1724601126325,3.94199524,2765.8,2765.2,3.61637]
[1724601126492,1.88886213,2765.9,2765.6,3.61576]
[1724601126493,1.51499524,2765.9,2765.6,3.61576]
[1724601126698,11.40199524,2766.1,2765.6,3.61576]
[1724601126892,2.2097,2766.0,2765.6,3.61576]
[1724601127864,1.51499524,2766.2,2765.7,3.61571]
[1724601127991,1.51499524,2766.2,2765.6,5.91416]
[1724601127992,3.81889524,2766.3,2765.6,5.91416]
[1724601129131,3.81889524,2766.3,2765.8,3.61558]
[1724601130999,1.51499524,2766.4,2766.2,3.61506]
[1724601131215,1.51499524,2766.5,2766.2,3.61498]
[1724601131417,1.51499524,2766.7,2766.3,5.91333]
[1724601131659,1.51499524,2766.7,2766.3,2.2984]
[1724601132111,1.51499524,2766.8,2766.3,5.91333]
[1724601132614,1.51499524,2766.9,2766.3,5.91333]
[1724601132969,1.51499524,2766.8,2766.3,5.91333]
[1724601133581,15.26923388,2767.0,2766.3,5.91333]
[1724601133582,1.51499524,2766.9,2766.3,5.91333]
[1724601133916,1.51499524,2766.8,2766.2,3.61506]
[1724601134152,1.51499524,2766.7,2766.2,3.61506]
[1724601135865,1.51499524,2766.7,2766.2,3.61495]
[1724601136072,1.51499524,2766.8,2766.2,3.61495]
[1724601136850,1.51499524,2766.9,2766.6,3.61453]
[1724601137934,1.51499524,2766.9,2766.4,3.61469]
[1724601138269,3.81889524,2766.9,2766.4,3.61469]
[1724601140565,3.81889524,2766.9,2766.4,3.61469]
[1724601141788,2.3039,2766.9,2766.4,3.61469]
[1724601144021,2.3039,2766.9,2766.4,3.61468]
[1724601145892,3.23623235,2766.9,2766.4,3.61468]
[1724601146496,3.23623235,2766.9,2766.2,9.52837]
[1724601146701,3.23623235,2766.9,2766.3,3.61493]
[1724601147062,3.23623235,2766.9,2766.4,3.6148]
[1724601147281,2.3039,2766.9,2766.4,3.6148]
[1724601148364,5.91812,2766.9,2766.2,9.52834]
[1724601148568,5.91812,2766.9,2765.8,0.952974]
[1724601148569,2.2937,2766.6,2766.0,3.61528]
[1724601148815,2.2937,2766.6,2765.8,6.859694]
[1724601148816,3.84406,2766.5,2765.8,5.90671]
[1724601149024,3.61469,2766.5,2765.8,5.9067]
[1724601149169,3.61469,2766.5,2765.9,3.61543]
[1724601149587,2.2937,2766.6,2765.9,3.61543]
[1724601150314,5.90825,2766.6,2765.9,3.61543]
[1724601150919,5.90825,2766.6,2766.0,3.61532]
[1724601151222,6.65057452,2766.6,2766.0,3.61532]
[1724601151816,5.90809,2766.8,2766.1,5.90638]
[1724601152369,2.2937,2766.8,2766.3,3.61482]
[1724601152570,1.8886465,2767.1,2766.6,3.61454]
[1724601152571,3.80869524,2767.1,2766.6,3.61454]
[1724601153489,2.2937,2767.1,2766.6,3.61454]
[1724601153689,6.80869524,2767.1,2766.6,3.61454]
[1724601154288,8.78579241,2767.1,2766.5,3.61466]
[1724601154971,3.61403,2767.0,2766.3,3.61483]
[1724601155318,1.51499524,2767.0,2766.4,3.61473]
[1724601155978,5.12901524,2767.0,2766.4,3.61473]
[1724601156376,3.61402,2767.0,2766.3,3.61483]
[1724601156604,5.13166985,2767.0,2766.4,3.61479]
[1724601157384,3.61417,2766.9,2766.3,3.61483]
[1724601157619,5.13166985,2767.0,2766.3,3.61483]
[1724601157807,8.74577985,2767.0,2766.3,3.61483]
[1724601158851,10.26077509,2767.0,2766.3,3.61483]
[1724601159049,1.55544751,2766.9,2766.3,3.61483]
[1724601159273,2.2937,2766.7,2765.9,2.2912]
[1724601159553,2.2937,2766.7,2765.7,3.61564]
[1724601159554,3.61488,2766.4,2765.8,3.61551]
[1724601160670,3.61488,2766.4,2765.3,2.2912]
[1724601160671,3.61506,2766.2,2765.3,2.2912]
[1724601160808,3.6152,2766.1,2765.4,3.61602]
[1724601161305,3.6152,2766.1,2765.4,7.23204]
[1724601161734,3.6152,2766.1,2765.5,3.61596]
[1724601162137,9.7537,2766.3,2765.7,7.23142]
[1724601162340,7.46,2766.3,2765.9,3.61536]
[1724601162657,1.17864955,2766.4,2765.9,3.61536]
[1724601162823,4.17864955,2766.4,2765.9,3.61536]
[1724601163960,0.76064996,2766.3,2765.7,9.52248]
[1724601164810,0.76064996,2766.3,2765.7,5.90682]
[1724601165013,3.61533,2766.0,2765.3,3.61617]
[1724601165469,3.61533,2766.0,2765.4,3.61603]
[1724601165813,3.61533,2766.0,2765.4,5.90723]
[1724601166062,5.90886,2766.2,2765.5,3.6159]
[1724601166214,1.55544751,2766.1,2765.5,3.6159]
[1724601166959,5.90886,2766.2,2765.5,3.6159]
[1724601167123,5.90886,2766.2,2765.5,3.61589]
[1724601167728,7.46,2766.3,2765.7,3.61563]
[1724601167925,7.46,2766.3,2765.7,7.23127]
[1724601168259,7.46,2766.3,2765.7,3.61563]
[1724601169627,8.97499524,2766.3,2765.7,3.61563]
[1724601170019,12.58995524,2766.3,2765.7,3.61563]
[1724601172079,5.13006524,2766.2,2765.6,3.61583]
[1724601176011,1.51499524,2766.2,2765.7,3.61565]
[1724601177895,8.97499524,2766.3,2765.9,3.61544]
[1724601178212,6.87969524,2766.4,2765.9,3.61544]
[1724601178712,4.51499524,2766.4,2765.9,3.61537]
[1724601178925,1.51499524,2766.4,2766.1,3.61519]
[1724601179219,1.51499524,2766.6,2766.1,3.61519]
[1724601179567,8.97499524,2766.7,2766.2,6.00025]
[1724601179865,8.97499524,2766.7,2766.3,3.61488]
[1724601180114,1.51499524,2766.8,2766.3,3.61487]
[1724601180300,1.51499524,2766.9,2766.5,3.61462]
[1724601180561,4.25451991,2767.1,2766.5,3.61462]
[1724601180562,1.51499524,2767.0,2766.5,3.61462]
[1724601180812,1.51499524,2767.0,2766.3,3.61487]
[1724601180813,1.51499524,2766.9,2766.4,3.61479]
[1724601182526,5.12902524,2767.0,2766.4,3.61479]
[1724601183308,5.12902524,2767.0,2766.3,3.61484]
[1724601183491,1.51499524,2766.9,2766.3,8.191206]
[1724601183785,5.12902524,2767.0,2766.3,8.191206]
[1724601184190,5.12902524,2767.0,2766.3,4.576356]
[1724601184369,3.87969524,2766.8,2766.2,2.3852]
[1724601185229,3.61442,2766.7,2766.2,2.3852]
[1724601185504,3.87969524,2766.8,2766.2,2.3852]
[1724601185723,7.49398524,2766.8,2766.2,6.00024]
[1724601185927,1.51499524,2766.8,2766.3,0.961531]
[1724601186216,4.25462258,2767.0,2766.4,3.61472]
[1724601186217,1.51499524,2767.0,2766.4,3.61472]
[1724601188823,1.51499524,2767.0,2766.5,2.421]
[1724601188985,2.4192,2766.9,2766.4,3.61472]
[1724601189320,3.93419524,2766.9,2766.4,3.61472]
[1724601190083,7.54839524,2766.9,2766.2,2.421]
[1724601190520,5.12928524,2766.8,2766.2,6.03603]
[1724601192342,5.12928524,2766.8,2766.1,3.61518]
[1724601192640,5.12928524,2766.8,2766.2,2.382]
[1724601192809,5.12928524,2766.8,2766.2,5.99698]
[1724601192974,3.61429,2766.8,2766.2,5.99698]
[1724601193430,5.12928524,2766.8,2766.2,5.99698]
[1724601193773,3.61429,2766.8,2766.2,5.99698]
[1724601193990,5.12928524,2766.8,2766.2,5.99698]
[1724601194825,3.61429,2766.8,2766.2,5.99698]
[1724601195276,5.12928524,2766.8,2766.2,5.99698]
[1724601195620,5.12928524,2766.8,2766.3,3.61492]
[1724601195621,1.51499524,2766.8,2766.3,3.61492]
[1724601195823,3.93419524,2766.9,2766.3,3.61492]
[1724601196036,7.54835524,2766.9,2766.3,3.61492]
[1724601199850,8.99831345,2766.9,2766.3,3.61492]
[1724601200032,1.26612269,2766.7,2766.3,3.61492]
[1724601203535,1.26612269,2766.7,2766.1,3.61508]
[1724601203536,1.26612269,2766.5,2766.1,3.61508]
[1724601204346,1.26612269,2766.5,2766.1,7.23019]
[1724601204510,1.26612269,2766.5,2766.2,3.61502]
[1724601206702,1.26612269,2766.5,2766.0,3.61531]
[1724601206703,1.26612269,2766.3,2766.0,3.61531]
[1724601206907,1.26612269,2766.3,2765.8,3.61551]
[1724601207803,1.26612269,2766.3,2765.8,7.23101]
[1724601208018,1.26612269,2766.3,2765.9,3.61538]
[1724601208311,1.26612269,2766.3,2765.8,4.576241]
[1724601208516,1.26612269,2766.3,2766.0,3.61532]
[1724601211531,1.26612269,2766.3,2766.1,3.61516]
[1724601211861,1.26612269,2766.5,2766.1,5.9915]
[1724601212807,2.78111793,2766.5,2766.1,5.9915]
[1724601213159,1.26612269,2766.5,2766.1,9.60661]
[1724601213501,2.78111793,2766.5,2766.1,9.60661]
[1724601213920,1.26612269,2766.5,2766.1,9.60661]
[1724601214554,1.26612269,2766.5,2766.1,5.9915]
[1724601215339,1.26612269,2766.5,2766.1,9.60661]
[1724601215560,1.26612269,2766.5,2766.1,5.9915]
[1724601215898,1.51499524,2766.6,2766.1,3.337088]
[1724601216098,1.51499524,2766.7,2766.4,3.61469]
[1724601216261,1.51499524,2766.8,2766.4,3.61469]
[1724601216586,2.78111793,2766.7,2766.4,3.61469]
[1724601216795,2.78111793,2766.7,2766.4,4.337641]
[1724601218992,2.78111793,2766.7,2766.6,3.61454]
[1724601219158,1.51499524,2766.8,2766.6,3.61454]
[1724601219359,1.51499524,2766.8,2766.7,3.61441]
[1724601219683,2.78111793,2766.9,2766.7,3.61441]
[1724601220091,2.78111793,2766.9,2766.7,7.22874]
[1724601220398,2.78111793,2766.9,2766.7,3.61433]
[1724601220986,1.51499524,2766.9,2766.7,4.574865]
[1724601221197,1.51499524,2767.1,2766.9,3.61415]
[1724601221398,1.89021505,2767.2,2767.0,3.61402]
[1724601221399,1.51499524,2767.2,2767.0,3.61402]
[1724601221754,1.51499524,2767.2,2766.9,3.61415]
[1724601221950,1.51499524,2767.2,2766.9,3.61405]
[1724601225470,2.78111793,2767.2,2766.9,3.61405]
[1724601226289,2.78111793,2767.2,2766.7,3.6143]
[1724601226290,1.26612269,2767.0,2766.7,3.6143]
[1724601226472,1.26612269,2766.8,2766.5,7.22919]
[1724601226677,1.26612269,2766.8,2766.6,3.6145]
[1724601227015,1.26612269,2767.0,2766.6,3.6145]
[1724601227168,1.26612269,2767.0,2766.7,3.6144]
[1724601228105,1.26612269,2767.0,2766.7,3.61433]
[1724601229392,1.26612269,2766.8,2766.7,3.61433]
[1724601230694,1.26612269,2767.0,2766.8,3.61425]
[1724601231487,1.26612269,2767.0,2766.9,3.61415]
[1724601231684,1.26612269,2767.2,2767.1,3.61389]
[1724601232219,5.26631793,2767.4,2767.1,3.61389]
[1724601232423,1.26612269,2767.2,2767.1,3.61389]
[1724601236282,2.78111793,2767.4,2767.1,3.61389]
[1724601237389,1.26612269,2767.4,2767.1,3.61389]
[1724601238492,1.26612269,2767.2,2766.9,7.22814]
[1724601239730,1.26612269,2767.2,2767.0,3.61398]
[1724601242742,1.26612269,2767.2,2766.9,3.61404]
[1724601245356,1.26612269,2767.4,2766.9,4.207804]
[1724601245546,1.26612269,2767.4,2766.9,3.61404]
[1724601246222,1.26612269,2767.4,2767.0,3.61398]
[1724601248735,1.26612269,2767.4,2766.9,3.61404]
[1724601252363,1.26612269,2767.2,2766.9,3.61404]
[1724601253440,1.26612269,2767.4,2767.0,3.61392]
[1724601253748,1.26612269,2767.4,2766.7,2.3236]
[1724601253749,1.26612269,2767.4,2767.1,3.61388]
[1724601253908,2.78111793,2767.5,2767.1,9.63279]
[1724601254110,2.78111793,2767.5,2767.1,6.01891]
[1724601254640,2.78111793,2767.5,2767.1,3.61381]
[1724601255121,3.8572125,2767.5,2767.1,3.61381]
[1724601255328,1.26612269,2767.3,2767.1,3.61381]
[1724601255635,1.26612269,2767.3,2766.9,9.63324]
[1724601256030,1.26612269,2767.3,2767.0,3.61399]
[1724601258406,2.78111793,2767.3,2767.0,3.61399]
[1724601260727,1.26612269,2767.1,2766.7,6.01943]
[1724601261047,2.78111793,2767.1,2766.7,6.01943]
[1724601261224,2.78111793,2767.1,2766.7,6.982833]
[1724601261427,2.78111793,2767.1,2766.7,10.597173]
[1724601262504,2.78111793,2767.1,2766.8,3.61424]
[1724601263514,1.26612269,2766.9,2766.4,4.213823]
[1724601263959,1.26612269,2766.7,2766.4,4.213823]
[1724601264314,1.26612269,2766.7,2766.3,3.61487]
[1724601264315,2.78111793,2766.7,2766.3,3.61487]
[1724601264516,1.51499524,2766.7,2766.4,3.61479]
[1724601264750,1.51499524,2766.8,2766.4,3.61479]
[1724601264921,1.51499524,2766.8,2766.6,3.61453]
[1724601265843,1.51499524,2766.8,2766.6,7.22906]
[1724601266029,1.51499524,2766.8,2766.6,3.61453]
[1724601268457,1.51499524,2766.7,2766.6,3.61453]
[1724601269221,2.78111793,2766.9,2766.6,7.22899]
[1724601269563,2.78111793,2766.9,2766.6,3.61446]
[1724601270059,1.51499524,2766.8,2766.6,3.61446]
[1724601270226,2.78111793,2766.9,2766.6,3.61446]
[1724601273079,1.51499524,2766.8,2766.6,3.61446]
[1724601274315,2.78111793,2766.9,2766.6,3.61446]
[1724601277092,1.51499524,2766.8,2766.6,3.61446]
[1724601277299,2.78111793,2766.9,2766.6,3.61446]
[1724601277526,1.51499524,2766.8,2766.6,3.61446]
[1724601277687,2.78111793,2766.9,2766.6,3.61446]
[1724601278085,2.78111793,2766.9,2766.2,2.2575]
[1724601278086,1.26612269,2766.7,2766.2,9.82679192]
[1724601278329,2.78111793,2766.7,2766.3,3.6149]
[1724601279239,2.78111793,2766.7,2766.4,3.61479]
[1724601279444,1.51499524,2766.8,2766.5,3.61466]
[1724601279732,1.26612269,2766.9,2766.5,3.61466]
[1724601279733,2.78111793,2766.9,2766.5,3.61466]
[1724601281524,2.78111793,2766.9,2766.4,3.61479]
[1724601281525,1.26612269,2766.9,2766.6,3.61451]
[1724601282122,2.78111793,2766.9,2766.7,3.61434]
[1724601283121,2.78111793,2766.9,2766.6,3.61451]
[1724601285454,2.78111793,2766.9,2766.4,3.61473]
[1724601285455,1.26612269,2766.7,2766.4,3.61473]
[1724601288488,1.26612269,2766.7,2766.5,3.61467]
[1724601288824,1.26612269,2766.9,2766.6,3.61445]
[1724601289124,1.51499524,2767.0,2766.5,3.61467]
[1724601289125,1.51499524,2767.0,2766.8,3.61419]
[1724601289352,5.5911911,2767.2,2766.8,3.61419]
[1724601289353,1.51499524,2767.1,2766.8,3.61419]
[1724601290115,1.51499524,2767.1,2766.7,3.61441]
[1724601292662,1.51499524,2767.0,2766.7,3.61441]
[1724601293156,1.51499524,2767.1,2766.7,3.61441]
[1724601293361,1.51499524,2767.1,2766.9,3.61406]
[1724601293559,1.51499524,2767.2,2767.0,3.61402]
[1724601293865,1.51499524,2767.3,2767.1,3.61389]
[1724601294534,1.51499524,2767.3,2767.2,3.61376]
[1724601295521,2.78111793,2767.4,2767.2,3.61376]
[1724601295757,2.78111793,2767.4,2767.0,7.22792]
[1724601296665,2.78111793,2767.4,2767.0,8.177312]
[1724601296836,2.78111793,2767.4,2767.1,3.61388]
[1724601297020,2.78111793,2767.4,2767.2,3.61372]
[1724601297221,1.51499524,2767.4,2767.2,3.61372]
[1724601297740,1.51499524,2767.5,2767.2,3.61372]
[1724601299368,1.26612269,2767.6,2767.2,3.61372]
[1724601299369,2.78111793,2767.6,2767.2,3.61372]
[1724601299573,1.51499524,2767.5,2767.2,3.61372]
[1724601300338,5.21411793,2767.4,2767.0,7.22784]
[1724601300551,5.21411793,2767.4,2767.0,3.6139]
[1724601300882,2.433,2767.1,2766.6,3.61451]
[1724601301036,1.26612269,2766.9,2766.5,3.61459]
[1724601303985,2.78111793,2766.9,2766.5,3.61459]
[1724601304202,2.78111793,2766.9,2766.3,3.61487]
[1724601304203,1.26612269,2766.7,2766.3,3.61487]
[1724601304403,2.78111793,2766.7,2766.3,3.61487]
[1724601304603,1.26612269,2766.7,2766.3,3.61487]
[1724601306573,1.26612269,2766.7,2766.3,7.22971]
[1724601308136,1.26612269,2766.7,2766.4,3.61476]
[1724601311662,1.51499524,2766.8,2766.5,3.61454]
[1724601311863,2.78111793,2766.9,2766.7,3.61441]
[1724601313373,2.78111793,2766.9,2766.5,7.22911]
[1724601314104,2.78111793,2766.9,2766.5,7.22912]
[1724601314309,2.78111793,2766.9,2766.5,3.61454]
[1724601314508,3.52032269,2766.7,2766.5,3.61454]
[1724601314710,3.52032269,2766.7,2766.2,3.61501]
[1724601314920,1.26612269,2766.3,2765.9,3.61538]
[1724601315239,1.51499524,2766.5,2765.5,3.61592]
[1724601315240,1.26612269,2765.9,2765.5,3.61592]
[1724601315369,1.26612269,2765.9,2765.5,3.61588]
[1724601315664,1.26612269,2766.1,2765.5,4.227328]
[1724601316122,1.26612269,2766.1,2765.6,3.61575]
[1724601316284,3.76919524,2766.2,2765.9,3.61535]
[1724601316496,1.26612269,2766.3,2765.9,3.61535]
[1724601320433,2.2542,2766.4,2766.0,3.61531]
[1724601320725,2.2542,2766.4,2765.9,3.61535]
[1724601320931,2.2542,2766.4,2765.9,4.588311]
[1724601321084,1.26612269,2766.3,2765.9,4.588311]
[1724601321284,1.26612269,2766.3,2765.9,3.61535]
[1724601326498,1.26612269,2766.3,2765.7,7.2313]
[1724601326721,1.26612269,2766.1,2765.7,7.2313]
[1724601326953,1.26612269,2766.1,2765.8,3.61556]
[1724601327478,1.26612269,2766.3,2765.8,3.61556]
[1724601327762,1.26612269,2766.3,2765.9,0.723119]
[1724601329647,5.86902,2766.4,2765.9,0.723119]
[1724601329847,5.86902,2766.4,2765.8,3.61556]
[1724601330161,2.2542,2766.4,2765.8,3.61556]
[1724601330463,2.3681,2766.6,2766.1,3.61518]
[1724601332764,3.88309524,2766.9,2766.3,3.6149]
[1724601332965,7.46,2767.0,2766.4,7.67412496]
[1724601333475,1.26612269,2767.3,2766.5,3.61459]
[1724601333476,12.58872524,2767.3,2766.5,3.61459]